Workbook

Sheet Лист1
B3: Пол | C3: Возраст | D3: Статус | E3: Группа товаров
B4: 2 | C4: 1 | D4: 1 | E4: 2 | G4: Пол | H4: Возраст | I4: Статус | J4: 1 | K4: 2 | L4: 3 | M4: 4 | N4: 5 | T4: Вероятная группа товаров | U4: 1 | V4: Детские товары
B5: 1 | C5: 3 | D5: 2 | E5: 3 | G5: 1 | H5: 1 | I5: 1 | J5: =COUNTIFS($B$4:$B$2745,$G5,$C$4:$C$2745,$H5,$D$4:$D$2745,$I5,$E$4:$E$2745,J$4) -> 11 | K5: 41 | L5: 12 | M5: 3 | N5: 78 | O5: =Regr1(G5,H5,I5) -> -9.168000221 | Q5: b0 | R5: =J23/18 -> 19.55555556 | T5: =PoiskMax(J5:N5,$J$4:$N$4) -> 5 | U5: 2 | V5: Одежда
B6: 1 | C6: 1 | D6: 2 | E6: 3 | G6: 1 | H6: 1 | I6: 2 | J6: 1 | K6: 34 | L6: 44 | M6: 27 | N6: 62 | O6: 2.165999651 | Q6: b11 | R6: =SUM(J5:J13)/9-R5 -> -8.111111111 | T6: 5 | U6: 3 | V6: Кондитерские изделия
B7: 1 | C7: 1 | D7: 1 | E7: 2 | G7: 1 | H7: 1 | I7: 3 | J7: 1 | K7: 34 | L7: 13 | M7: 1 | N7: 110 | O7: 2.665999651 | Q7: b12 | R7: =SUM(J14:J22)/9-R5 -> 8.111111111 | T7: 5 | U7: 4 | V7: Косметика
B8: 1 | C8: 2 | D8: 3 | E8: 3 | G8: 1 | H8: 2 | I8: 1 | J8: 8 | K8: 25 | L8: 29 | M8: 10 | N8: 83 | O8: 11.99900055 | Q8: b21 | R8: =(11+1+1+2+9+16)/6-R5 -> -12.88888889 | T8: 5 | U8: 5 | V8: Алкоголь и табачные изделия
B9: 1 | C9: 1 | D9: 2 | E9: 1 | G9: 1 | H9: 2 | I9: 2 | J9: 22 | K9: 54 | L9: 31 | M9: 11 | N9: 39 | O9: 23.33300018 | Q9: b22 | R9: =(8+22+18+8+46+65)/6-19.556 -> 8.277333333 | T9: 2
B10: 1 | C10: 2 | D10: 2 | E10: 5 | G10: 1 | H10: 2 | I10: 3 | J10: 18 | K10: 53 | L10: 21 | M10: 19 | N10: 37 | O10: 23.83300018 | Q10: b23 | R10: =(12+24+6+30+37+36)/6-19.556 -> 4.610666667 | T10: 2
B11: 2 | C11: 2 | D11: 1 | E11: 5 | G11: 1 | H11: 3 | I11: 1 | J11: 12 | K11: 20 | L11: 33 | M11: 31 | N11: 48 | O11: 10.33300018 | Q11: b31 | R11: =(11+8+12+2+8+30)/6-19.556 -> -7.722666667 | T11: 5 | U11: 1 | V11: м
B12: 2 | C12: 3 | D12: 3 | E12: 3 | G12: 1 | H12: 3 | I12: 2 | J12: 24 | K12: 69 | L12: 21 | M12: 18 | N12: 20 | O12: 21.66699982 | Q12: b32 | R12: =(1+22+24+9+46+37)/6-19.556 -> 3.610666667 | T12: 2 | U12: 2 | V12: ж
B13: 1 | C13: 2 | D13: 1 | E13: 5 | G13: 1 | H13: 3 | I13: 3 | J13: 6 | K13: 36 | L13: 8 | M13: 27 | N13: 45 | O13: 22.16699982 | Q13: b33 | R13: =(1+18+6+16+65+36)/6-19.556 -> 4.110666667 | T13: 5
B14: 1 | C14: 2 | D14: 3 | E14: 5 | G14: 2 | H14: 1 | I14: 1 | J14: 2 | K14: 34 | L14: 57 | M14: 61 | N14: 3 | O14: 7.053999901 | T14: 4 | U14: 1 | V14: до 21
B15: 1 | C15: 2 | D15: 3 | E15: 2 | G15: 2 | H15: 1 | I15: 2 | J15: =COUNTIFS($B$4:$B$2745,$G15,$C$4:$C$2745,$H15,$D$4:$D$2745,$I15,$E$4:$E$2745,J$4) -> 9 | K15: 42 | L15: 42 | M15: 69 | N15: 5 | O15: 18.38800049 | Q15: ss0= | R15: =VAR(J5:J22)*17 -> 5178.444444 | T15: 4 | U15: 2 | V15: 21-40
B16: 2 | C16: 2 | D16: 1 | E16: 5 | G16: 2 | H16: 1 | I16: 3 | J16: 16 | K16: 33 | L16: 45 | M16: 54 | N16: 17 | O16: 18.88800049 | T16: 4 | U16: 3 | V16: более 40
B17: 2 | C17: 2 | D17: 1 | E17: 2 | G17: 2 | H17: 2 | I17: 1 | J17: 8 | K17: 43 | L17: 27 | M17: 50 | N17: 30 | O17: 28.22100067 | T17: 4
B18: 2 | C18: 2 | D18: 1 | E18: 2 | G18: 2 | H18: 2 | I18: 2 | J18: 46 | K18: 43 | L18: 19 | M18: 36 | N18: 9 | O18: 39.55500031 | T18: 1 | U18: 1 | V18: Неработающие
B19: 1 | C19: 1 | D19: 2 | E19: 5 | G19: 2 | H19: 2 | I19: 3 | J19: 65 | K19: 33 | L19: 7 | M19: 23 | N19: 15 | O19: 40.05500031 | T19: 1 | U19: 2 | V19: Оффисные
B20: 2 | C20: 2 | D20: 2 | E20: 2 | G20: 2 | H20: 3 | I20: 1 | J20: 30 | K20: 78 | L20: 12 | M20: 10 | N20: 25 | O20: 26.55500031 | T20: 2 | U20: 3 | V20: Рабочие
B21: 2 | C21: 2 | D21: 3 | E21: 1 | G21: 2 | H21: 3 | I21: 2 | J21: 37 | K21: 34 | L21: 19 | M21: 35 | N21: 13 | O21: 37.88899994 | T21: 1
B22: 2 | C22: 2 | D22: 3 | E22: 2 | G22: 2 | H22: 3 | I22: 3 | J22: 36 | K22: 49 | L22: 18 | M22: 30 | N22: 23 | O22: 38.38899994 | T22: 2
B23: 1 | C23: 3 | D23: 3 | E23: 5 | J23: =SUM(J5:J22) -> 352 | K23: 755 | L23: 458 | M23: 515 | N23: 662 | O23: 363.9900022
B24: 1 | C24: 1 | D24: 1 | E24: 5 | N24: =SUM(J23:N23) -> 2742
B25: 2 | C25: 1 | D25: 2 | E25: 4 | N25: =VARA(J5:J22)*17 -> 5178.444444
B26: 1 | C26: 2 | D26: 1 | E26: 5
B27: 2 | C27: 3 | D27: 1 | E27: 5 | H27: x1 | I27: 1 | J27: =SUM(J5:J13) -> 103 | Q27: Профиль
B28: 2 | C28: 1 | D28: 3 | E28: 2 | I28: 2 | J28: =SUM(J14:J22) -> 249 | Q28: Пол | R28: Возраст | S28: Статус | T28: Группа товаров
B29: 2 | C29: 1 | D29: 1 | E29: 2 | H29: x2 | I29: 1 | J29: =SUM(J5:J7,J14:J16) -> 40 | Q29: ж | R29: до 21 | S29: Неработающие
B30: 2 | C30: 1 | D30: 1 | E30: 3 | I30: 2 | J30: =SUM(J8:J10,J17:J19) -> 167
B31: 2 | C31: 1 | D31: 3 | E31: 2 | I31: 3 | J31: =SUM(J11:J13,J20:J22) -> 145 | O31: sx2= | P31: =SUMSQ(J5:J22) -> 12062
B32: 2 | C32: 2 | D32: 1 | E32: 2 | H32: x3 | I32: 1 | J32: =J5+J8+J11+J14+J17+J20 -> 71 | O32: p= | P32: =J23^2/18 -> 6883.555556
B33: 1 | C33: 1 | D33: 3 | E33: 5 | I33: 2 | J33: =J6+J9+J12+J15+J18+J21 -> 139 | O33: ss0= | P33: =P31-P32 -> 5178.444444 | Q33: 17 | S33: F | T33: Fcr
B34: 1 | C34: 3 | D34: 2 | E34: 2 | I34: 3 | J34: =J7+J10+J13+J16+J19+J22 -> 142 | O34: ss1= | P34: =(J27^2/9+J28^2/9-P32) -> 1184.222222 | Q34: 1 | R34: =P34/Q34 -> 1184.222222 | S34: =R34/R37 -> 7.396252602 | T34: =_xlfn.F.INV.RT(0.05,1,12) -> 4.747225347
B35: 2 | C35: 3 | D35: 1 | E35: 1 | O35: ss2= | P35: =J29^2/6+J30^2/6+J31^2/6-P32 -> 1535.444444 | Q35: 2 | R35: 767.7222222 | S35: =R35/R37 -> 4.794934074 | T35: =_xlfn.F.INV.RT(0.05,2,12) -> 3.885293835
B36: 2 | C36: 1 | D36: 2 | E36: 3 | O36: ss3= | P36: =J32^2/6+J33^2/6+J34^2/6-P32 -> 537.4444444 | Q36: 2 | R36: 268.7222222 | S36: =R36/R37 -> 1.678348369 | T36: =_xlfn.F.INV.RT(0.05,2,12) -> 3.885293835
B37: 1 | C37: 2 | D37: 2 | E37: 5 | O37: sse= | P37: =P33-P34-P35-P36 -> 1921.333333 | Q37: 12 | R37: 160.1111111
B38: 2 | C38: 2 | D38: 2 | E38: 1
B39: 1 | C39: 3 | D39: 3 | E39: 4 | Q39: f | S39: F
B40: 1 | C40: 1 | D40: 3 | E40: 5 | O40: ss0r= | P40: =P33-P41 -> 3233.111076 | Q40: 5 | R40: =P40/Q40 -> 646.6222151 | S40: =R40/R41 -> 3.988759308
B41: 1 | C41: 2 | D41: 3 | E41: 5 | O41: ss0m= | P41: =SUMXMY2(J5:J22,O5:O22) -> 1945.333369 | Q41: 12 | R41: =P41/Q41 -> 162.1111141
B42: 1 | C42: 2 | D42: 2 | E42: 3
B43: 1 | C43: 2 | D43: 2 | E43: 3 | P43: =R40^0.5 -> 25.42876747
B44: 1 | C44: 2 | D44: 1 | E44: 3 | O44: dy= | P44: =P43*P45 -> 55.40452481
B45: 1 | C45: 3 | D45: 3 | E45: 4 | O45: t= | P45: =_xlfn.T.INV.2T(0.05,12) -> 2.17881283 | S45: =_xlfn.F.INV(0.05,4,12) -> 0.1691552474
B46: 1 | C46: 2 | D46: 3 | E46: 4 | S46: =_xlfn.F.INV.RT(0.05,5,12) -> 3.105875239
B47: 1 | C47: 3 | D47: 1 | E47: 4
B48: 2 | C48: 3 | D48: 3 | E48: 5
B49: 2 | C49: 1 | D49: 1 | E49: 3
B50: 1 | C50: 2 | D50: 3 | E50: 4
B51: 1 | C51: 3 | D51: 3 | E51: 5
B52: 2 | C52: 2 | D52: 3 | E52: 3
B53: 1 | C53: 3 | D53: 1 | E53: 3
B54: 2 | C54: 1 | D54: 3 | E54: 3
B55: 2 | C55: 1 | D55: 1 | E55: 2
B56: 2 | C56: 3 | D56: 3 | E56: 2
B57: 1 | C57: 3 | D57: 3 | E57: 4
B58: 1 | C58: 1 | D58: 2 | E58: 2
B59: 2 | C59: 1 | D59: 2 | E59: 2
B60: 2 | C60: 3 | D60: 2 | E60: 2
B61: 1 | C61: 1 | D61: 1 | E61: 3
B62: 2 | C62: 3 | D62: 2 | E62: 5
B63: 2 | C63: 3 | D63: 3 | E63: 1
B64: 1 | C64: 3 | D64: 1 | E64: 4
B65: 1 | C65: 2 | D65: 1 | E65: 5
B66: 1 | C66: 2 | D66: 3 | E66: 3
B67: 2 | C67: 1 | D67: 2 | E67: 4
B68: 1 | C68: 1 | D68: 3 | E68: 3
B69: 2 | C69: 3 | D69: 3 | E69: 1
B70: 1 | C70: 3 | D70: 3 | E70: 5
B71: 1 | C71: 2 | D71: 2 | E71: 3
B72: 1 | C72: 3 | D72: 3 | E72: 4
B73: 1 | C73: 2 | D73: 2 | E73: 2
B74: 2 | C74: 3 | D74: 3 | E74: 3
B75: 2 | C75: 2 | D75: 2 | E75: 4
B76: 1 | C76: 2 | D76: 2 | E76: 5
B77: 2 | C77: 2 | D77: 2 | E77: 4
B78: 2 | C78: 3 | D78: 1 | E78: 1
B79: 1 | C79: 1 | D79: 1 | E79: 2
B80: 2 | C80: 3 | D80: 2 | E80: 2
B81: 2 | C81: 3 | D81: 3 | E81: 4
B82: 2 | C82: 3 | D82: 3 | E82: 3
B83: 1 | C83: 3 | D83: 3 | E83: 5
B84: 2 | C84: 3 | D84: 1 | E84: 2
B85: 1 | C85: 1 | D85: 2 | E85: 5
B86: 2 | C86: 2 | D86: 3 | E86: 2
B87: 2 | C87: 1 | D87: 3 | E87: 4
B88: 1 | C88: 2 | D88: 2 | E88: 5
B89: 1 | C89: 1 | D89: 1 | E89: 5
B90: 2 | C90: 3 | D90: 3 | E90: 2
B91: 2 | C91: 3 | D91: 1 | E91: 2
B92: 1 | C92: 2 | D92: 2 | E92: 5
B93: 2 | C93: 1 | D93: 1 | E93: 3
B94: 1 | C94: 1 | D94: 2 | E94: 3
B95: 1 | C95: 1 | D95: 1 | E95: 2
B96: 2 | C96: 1 | D96: 3 | E96: 5
B97: 1 | C97: 2 | D97: 1 | E97: 5
B98: 1 | C98: 1 | D98: 3 | E98: 5
B99: 1 | C99: 1 | D99: 2 | E99: 4
B100: 1 | C100: 1 | D100: 3 | E100: 2
B101: 1 | C101: 1 | D101: 2 | E101: 5
B102: 2 | C102: 1 | D102: 2 | E102: 4
B103: 2 | C103: 1 | D103: 2 | E103: 2
B104: 1 | C104: 3 | D104: 2 | E104: 4
B105: 2 | C105: 1 | D105: 3 | E105: 4
B106: 1 | C106: 3 | D106: 2 | E106: 5
B107: 2 | C107: 2 | D107: 2 | E107: 2
B108: 2 | C108: 3 | D108: 1 | E108: 1
B109: 1 | C109: 3 | D109: 1 | E109: 4
B110: 1 | C110: 3 | D110: 2 | E110: 1
B111: 1 | C111: 2 | D111: 1 | E111: 5
B112: 2 | C112: 1 | D112: 3 | E112: 2
B113: 1 | C113: 2 | D113: 2 | E113: 1
B114: 1 | C114: 2 | D114: 1 | E114: 2
B115: 1 | C115: 1 | D115: 2 | E115: 4
B116: 1 | C116: 2 | D116: 2 | E116: 5
B117: 1 | C117: 1 | D117: 1 | E117: 5
B118: 2 | C118: 1 | D118: 2 | E118: 4
B119: 2 | C119: 1 | D119: 3 | E119: 1
B120: 2 | C120: 2 | D120: 1 | E120: 2
B121: 1 | C121: 2 | D121: 3 | E121: 2
B122: 2 | C122: 1 | D122: 3 | E122: 3
B123: 1 | C123: 2 | D123: 1 | E123: 2
B124: 1 | C124: 1 | D124: 3 | E124: 2
B125: 1 | C125: 1 | D125: 1 | E125: 5
B126: 2 | C126: 1 | D126: 3 | E126: 3
B127: 2 | C127: 2 | D127: 1 | E127: 2
B128: 1 | C128: 2 | D128: 2 | E128: 4
B129: 2 | C129: 3 | D129: 3 | E129: 2
B130: 1 | C130: 2 | D130: 1 | E130: 3
B131: 1 | C131: 3 | D131: 1 | E131: 4
B132: 2 | C132: 1 | D132: 3 | E132: 2
B133: 1 | C133: 2 | D133: 3 | E133: 1
B134: 2 | C134: 2 | D134: 3 | E134: 1
B135: 1 | C135: 3 | D135: 2 | E135: 4
B136: 2 | C136: 2 | D136: 2 | E136: 4
B137: 2 | C137: 3 | D137: 2 | E137: 1
B138: 2 | C138: 1 | D138: 3 | E138: 4
B139: 1 | C139: 3 | D139: 3 | E139: 2
B140: 2 | C140: 1 | D140: 3 | E140: 1
B141: 2 | C141: 3 | D141: 3 | E141: 4
B142: 2 | C142: 1 | D142: 1 | E142: 3
B143: 2 | C143: 3 | D143: 2 | E143: 5
B144: 1 | C144: 1 | D144: 2 | E144: 4
B145: 1 | C145: 3 | D145: 2 | E145: 2
B146: 2 | C146: 3 | D146: 2 | E146: 4
B147: 1 | C147: 1 | D147: 2 | E147: 5
B148: 1 | C148: 1 | D148: 3 | E148: 5
B149: 1 | C149: 2 | D149: 2 | E149: 1
B150: 1 | C150: 3 | D150: 1 | E150: 3
B151: 2 | C151: 1 | D151: 2 | E151: 2
B152: 2 | C152: 2 | D152: 2 | E152: 1
B153: 2 | C153: 3 | D153: 3 | E153: 4
B154: 1 | C154: 2 | D154: 3 | E154: 2
B155: 1 | C155: 1 | D155: 1 | E155: 2
B156: 2 | C156: 3 | D156: 3 | E156: 2
B157: 2 | C157: 1 | D157: 1 | E157: 2
B158: 2 | C158: 3 | D158: 2 | E158: 2
B159: 1 | C159: 3 | D159: 3 | E159: 5
B160: 1 | C160: 2 | D160: 1 | E160: 1
B161: 2 | C161: 3 | D161: 3 | E161: 4
B162: 2 | C162: 3 | D162: 2 | E162: 5
B163: 1 | C163: 2 | D163: 2 | E163: 2
B164: 2 | C164: 2 | D164: 2 | E164: 4
B165: 2 | C165: 1 | D165: 1 | E165: 3
B166: 2 | C166: 2 | D166: 3 | E166: 2
B167: 1 | C167: 1 | D167: 2 | E167: 5
B168: 1 | C168: 1 | D168: 3 | E168: 5
B169: 2 | C169: 3 | D169: 2 | E169: 2
B170: 1 | C170: 2 | D170: 3 | E170: 4
B171: 1 | C171: 3 | D171: 2 | E171: 4
B172: 1 | C172: 1 | D172: 2 | E172: 4
B173: 1 | C173: 2 | D173: 1 | E173: 5
B174: 1 | C174: 2 | D174: 1 | E174: 2
B175: 1 | C175: 2 | D175: 2 | E175: 3
B176: 2 | C176: 1 | D176: 1 | E176: 4
B177: 2 | C177: 2 | D177: 1 | E177: 5
B178: 1 | C178: 2 | D178: 3 | E178: 2
B179: 2 | C179: 2 | D179: 1 | E179: 1
B180: 1 | C180: 2 | D180: 3 | E180: 4
B181: 2 | C181: 3 | D181: 3 | E181: 2
B182: 1 | C182: 1 | D182: 2 | E182: 2
B183: 1 | C183: 3 | D183: 3 | E183: 4
B184: 2 | C184: 3 | D184: 3 | E184: 1
B185: 1 | C185: 3 | D185: 3 | E185: 2
B186: 2 | C186: 2 | D186: 1 | E186: 2
B187: 2 | C187: 2 | D187: 2 | E187: 2
B188: 1 | C188: 3 | D188: 1 | E188: 5
B189: 2 | C189: 3 | D189: 3 | E189: 5
B190: 2 | C190: 1 | D190: 3 | E190: 4
B191: 2 | C191: 2 | D191: 3 | E191: 1
B192: 1 | C192: 2 | D192: 2 | E192: 2
B193: 1 | C193: 1 | D193: 1 | E193: 5
B194: 1 | C194: 2 | D194: 3 | E194: 1
B195: 1 | C195: 3 | D195: 1 | E195: 5
B196: 2 | C196: 3 | D196: 3 | E196: 2
B197: 2 | C197: 1 | D197: 1 | E197: 4
B198: 1 | C198: 2 | D198: 1 | E198: 5
B199: 1 | C199: 2 | D199: 1 | E199: 2
B200: 1 | C200: 1 | D200: 1 | E200: 2
B201: 1 | C201: 1 | D201: 3 | E201: 5
B202: 1 | C202: 1 | D202: 1 | E202: 5
... 2543 more rows

Sheet Лист2
K1: raschet
C2: Пол | D2: Возраст | E2: Статус | F2: 1 | G2: 2 | H2: 3 | I2: 4 | J2: 5
C3: 1 | D3: 1 | E3: 1 | F3: 11 | G3: 41 | H3: 12 | I3: 3 | J3: 78 | K3: =Regr1(C3,E3) -> 15.22222233
C4: 1 | D4: 1 | E4: 2 | F4: 1 | G4: 34 | H4: 44 | I4: 27 | J4: 62 | K4: =Regr1(C4,E4) -> 20.38888931
C5: 1 | D5: 1 | E5: 3 | F5: 1 | G5: 34 | H5: 13 | I5: 1 | J5: 110 | K5: 13.38888931
C6: 1 | D6: 2 | E6: 1 | F6: 8 | G6: 25 | H6: 29 | I6: 10 | J6: 83 | K6: 15.22222233
C7: 1 | D7: 2 | E7: 2 | F7: 22 | G7: 54 | H7: 31 | I7: 11 | J7: 39 | K7: 20.38888931
C8: 1 | D8: 2 | E8: 3 | F8: 18 | G8: 53 | H8: 21 | I8: 19 | J8: 37 | K8: 13.38888931
C9: 1 | D9: 3 | E9: 1 | F9: 12 | G9: 20 | H9: 33 | I9: 31 | J9: 48 | K9: 15.22222233
C10: 1 | D10: 3 | E10: 2 | F10: 24 | G10: 69 | H10: 21 | I10: 18 | J10: 20 | K10: 20.38888931
C11: 1 | D11: 3 | E11: 3 | F11: 6 | G11: 36 | H11: 8 | I11: 27 | J11: 45 | K11: 13.38888931
C12: 2 | D12: 1 | E12: 1 | F12: 2 | G12: 34 | H12: 57 | I12: 61 | J12: 3 | K12: 39.77777863 | M12: Пол
C13: 2 | D13: 1 | E13: 2 | F13: 9 | G13: 42 | H13: 42 | I13: 69 | J13: 5 | K13: 44.94444275 | M13: 1 | N13: =SUM(I3:I11) -> 147
C14: 2 | D14: 1 | E14: 3 | F14: 16 | G14: 33 | H14: 45 | I14: 54 | J14: 17 | K14: 37.94444275 | M14: 2 | N14: =SUM(I12:I20) -> 368
C15: 2 | D15: 2 | E15: 1 | F15: 8 | G15: 43 | H15: 27 | I15: 50 | J15: 30 | K15: 39.77777863 | N15: =SUM(N13:N14) -> 515
C16: 2 | D16: 2 | E16: 2 | F16: 46 | G16: 43 | H16: 19 | I16: 36 | J16: 9 | K16: 44.94444275
C17: 2 | D17: 2 | E17: 3 | F17: 65 | G17: 33 | H17: 7 | I17: 23 | J17: 15 | K17: 37.94444275 | M17: Статус
C18: 2 | D18: 3 | E18: 1 | F18: 30 | G18: 78 | H18: 12 | I18: 10 | J18: 25 | K18: 39.77777863 | M18: 1 | N18: =I3+I6+I9+I12+I15+I18 -> 165
C19: 2 | D19: 3 | E19: 2 | F19: 37 | G19: 34 | H19: 19 | I19: 35 | J19: 13 | K19: 44.94444275 | M19: 2 | N19: =I4+I7+I10+I13+I16+I19 -> 196
C20: 2 | D20: 3 | E20: 3 | F20: 36 | G20: 49 | H20: 18 | I20: 30 | J20: 23 | K20: 37.94444275 | M20: 3 | N20: 154
F21: =SUM(F3:F20) -> 352 | G21: 755 | H21: 458 | I21: 515 | J21: 662 | N21: =SUM(N18:N20) -> 515
J22: =SUM(F21:J21) -> 2742
N24: b0= | O24: =N21/18 -> 28.61111111
N25: p11= | O25: =N13/9-O24 -> -12.27777778
N26: p12= | O26: =N14/9-O24 -> 12.27777778
N27: s11= | O27: =N18/6-O24 -> -1.111111111
N28: s12= | O28: =N19/6-O24 -> 4.055555556
N29: s13= | O29: =N20/6-O24 -> -2.944444444
